fUSD/lending_fUSD_20240425
["ID","MTS","AMOUNT","RATE_DAILY","PERIOD"]
[323534305,1714074650421,-645.73,0.00011506,2]
[323534306,1714074650430,-500.0,0.00011506,2]
[323534307,1714074650439,-500.0,0.00011506,2]
[323534308,1714074650448,-500.0,0.00011506,2]
[323534309,1714074650457,-562.17,0.00011506,2]
[323534310,1714074650466,-535.56,0.00011506,2]
[323534311,1714074650476,-4994.51,0.00011506,2]
[323534312,1714074650485,-521.37,0.00011506,2]
[323534313,1714074650494,-375.91,0.00011506,2]
[323534314,1714074650504,-667.19,0.00011506,2]
[323534315,1714074650513,-631.04,0.00011506,2]
[323534316,1714074650522,-500.0,0.00011506,2]
[323534317,1714074650531,-917.34,0.00011506,2]
[323534318,1714074650540,-283.31,0.00011506,2]
[323534319,1714074650549,-608.0,0.00011506,2]
[323534320,1714074650559,-500.0,0.00011506,2]
[323534321,1714074650568,-500.0,0.00011506,2]
[323534322,1714074650578,-500.0,0.00011506,2]
[323534323,1714074650587,-931.88,0.00011506,2]
[323534324,1714074650596,-2970.08,0.00011506,2]
[323534325,1714074650605,-2768.31,0.00011506,2]
[323534326,1714074650614,-500.0,0.00011506,2]
[323534327,1714074650625,-500.0,0.00011506,2]
[323534328,1714074650634,-500.0,0.00011506,2]
[323534329,1714074650644,-1714.02,0.00011506,2]
[323534330,1714074650654,-4134.1,0.00011506,2]
[323534331,1714074650663,-500.0,0.00011506,2]
[323534332,1714074650672,-1103.14,0.00011506,2]
[323534333,1714074650682,-804.29,0.00011506,2]
[323534334,1714074650691,-1260.94,0.00011506,2]
[323534335,1714074650702,-1426.68,0.00011506,2]
[323534336,1714074650714,-2035.64,0.00011506,2]
[323534337,1714074650723,-1651.88,0.00011506,2]
[323534338,1714074650732,-567.47,0.00011506,2]
[323534339,1714074650741,-500.0,0.00011506,2]
[323534340,1714074650750,-500.0,0.00011506,2]
[323534341,1714074650759,-500.0,0.00011506,2]
[323534342,1714074650768,-500.0,0.00011506,2]
[323534343,1714074650778,-4152.4,0.00011506,2]
[323534344,1714074650787,-536.15,0.00011506,2]
[323534345,1714074650796,-1197.75,0.00011506,2]
[323534346,1714074650806,-339.1,0.00011506,2]
[323534347,1714074650815,-500.0,0.00011506,2]
[323534348,1714074650824,-701.42,0.00011506,2]
[323534349,1714074650834,-380.44,0.00011506,2]
[323534350,1714074650843,-500.0,0.00011506,2]
[323534351,1714074650852,-307.2,0.00011506,2]
[323534352,1714074650862,-1060.6,0.00011506,2]
[323534353,1714074650871,-2816.07,0.00011506,2]
[323534354,1714074650880,-854.15,0.00011506,2]
[323534355,1714074650889,-343.49,0.00011506,2]
[323534356,1714074650898,-2115.01,0.00011506,2]
[323534357,1714074650908,-500.0,0.00011506,2]
[323534358,1714074650917,-453.55,0.00011506,2]
[323534359,1714074650926,-570.27,0.00011506,2]
[323534360,1714074650936,-402.91,0.00011506,2]
[323534361,1714074650945,-521.9,0.00011506,2]
[323534362,1714074650954,-6197.32,0.00011506,2]
[323534363,1714074650963,-613.43,0.00011506,2]
[323534364,1714074650972,-714.7,0.00011506,2]
[323534365,1714074650981,-500.0,0.00011506,2]
[323534366,1714074650991,-880.86,0.00011506,2]
[323534367,1714074651000,-690.23,0.00011506,2]
[323534368,1714074651010,-2702.76810515,0.00011679,2]
[323534369,1714074651019,-1169.44346216,0.00011699,2]
[323534370,1714074651438,-688.38156469,0.00011699,2]
[323534371,1714074651552,-844.94307829,0.00011699,2]
[323534372,1714074651562,-1341.43653588,0.00011719,2]
[323534373,1714074652109,-337.75018438,0.00010957,2]
[323534374,1714074652119,-563.14981512,0.00010958,2]
[323534375,1714074652130,-81.88018488,0.00010958,2]
[323534376,1714074652140,-500.0,0.00010958,2]
[323534377,1714074652149,-500.0,0.00010958,2]
[323534378,1714074652159,-500.0,0.00011231,2]
[323534379,1714074652170,-500.0,0.00011232,2]
[323534380,1714074652179,-500.0,0.00011505,2]
[323534381,1714074652189,-500.0,0.00011506,2]
[323534382,1714074652199,-1361.33156926,0.00011719,2]
[323534383,1714074652208,-2702.76810514,0.00011739,2]
[323534384,1714074652217,-2702.76810514,0.00011759,2]
[323534385,1714074652227,-1033.62015784,0.0001176,2]
[323534386,1714074652237,-500.0,0.00011779,2]
[323534387,1714074652246,-650.3,0.00011779,2]
[323534388,1714074652256,-684.25,0.00011779,2]
[323534389,1714074652265,-826.58,0.00011779,2]
[323534390,1714074652275,-500.0,0.00011779,2]
[323534391,1714074652285,-708.86307007,0.00011779,2]
[323534392,1714074652296,-431.52692993,0.00011779,2]
[323534393,1714074652306,-251.15980081,0.00011779,2]
[323534394,1714074652330,-248.84019919,0.00011779,2]
[323534395,1714074652340,-251.15980081,0.00011779,2]
[323534396,1714074653390,1471.4345424,8.264e-05,2]
[323534397,1714074665023,1984.00592186,8.264e-05,2]
[323534399,1714074824921,707.18,8.502e-05,2]
[323534401,1714074992676,-3000.82967405,8.979e-05,2]
[323534402,1714074992701,-162.13441227,8.98e-05,2]
[323534403,1714074992728,-1500.0,8.98e-05,2]
[323534404,1714074992755,-370.0983265,8.981e-05,2]
[323534405,1714074992779,-150.15141395,8.982e-05,2]
[323534406,1714074992803,-781.51595373,8.983e-05,2]
[323534407,1714074992829,-1035.2702195,8.986e-05,2]
[323534408,1714075164561,183.37,8.257e-05,2]
[323534409,1714075229782,3750.0,8.257e-05,2]
[323534410,1714075276926,1097.15,8.356e-05,2]
[323534411,1714075355396,245.94922661,8.356e-05,2]
[323534412,1714075365771,900.0,8.356e-05,2]
[323534416,1714075767093,1042.29,8.219e-05,2]
[323534421,1714075832047,-239.85,9.716e-05,2]
[323534422,1714075832057,-807.57676983,9.733e-05,2]
[323534423,1714075832155,-544.31957583,9.733e-05,2]
[323534424,1714075832165,-781.51595373,9.734e-05,2]
[323534425,1714075832175,-7383.09393338,9.735e-05,2]
[323534426,1714075832186,-516.04390993,9.735e-05,2]
[323534427,1714075832224,-5273.24215669,9.735e-05,2]
[323534428,1714075832233,-239.85,9.742e-05,2]
[323534429,1714075832243,-239.85,9.769e-05,2]
[323534430,1714075832252,-239.85,9.796e-05,2]
[323534431,1714075832261,-239.85,9.822e-05,2]
[323534432,1714075832270,-239.85,9.849e-05,2]
[323534433,1714075832279,-527.07691918,9.875e-05,2]
[323534434,1714075832288,-239.85,9.876e-05,2]
[323534435,1714075832297,-721.09,9.876e-05,2]
[323534436,1714075832307,-239.85,9.902e-05,2]
[323534437,1714075832316,-239.85,9.929e-05,2]
[323534438,1714075832325,-967.84164303,9.929e-05,2]
[323534439,1714075832334,-10569.49520834,9.929e-05,2]
[323534440,1714075832343,-1242.31430456,9.93e-05,2]
[323534441,1714075832353,-3000.82967405,9.931e-05,2]
[323534442,1714075832362,-194.03700996,9.932e-05,2]
[323534443,1714075832375,-250.0,9.933e-05,2]
[323534445,1714075832385,-239.85,9.956e-05,2]
[323534447,1714075832395,-239.85,9.982e-05,2]
[323534449,1714075832404,-165.86,0.00010012,2]
[323534450,1714075832413,-165.86,0.00010062,2]
[323534451,1714075832423,-537.58418051,0.00010178,2]
[323534452,1714075832432,-2339.1,0.00010182,2]
[323534453,1714075832442,-2817.98164795,0.00010213,2]
[323534454,1714075832451,-1089.49,0.00010274,2]
[323534455,1714075832461,-1042.29,0.00010473,2]
[323534456,1714075832471,-500.0,0.00010858,2]
[323534457,1714075832480,-356.6138213,0.00010958,2]
[323534458,1714075832493,-143.3861787,0.00010958,2]
[323534459,1714075832503,-356.34,0.00010958,2]
[323534460,1714075832514,-500.0,0.00010958,2]
[323534462,1714075832524,-500.0,0.00010958,2]
[323534464,1714075832534,-500.0,0.00010958,2]
[323534466,1714075832544,-249.27071631,0.00010958,2]
[323534468,1714075832556,-250.72928369,0.00010958,2]
[323534470,1714075832565,-500.0,0.00010958,2]
[323534472,1714075832575,-550.25,0.00010958,2]
[323534474,1714075832585,-500.0,0.00010958,2]
[323534476,1714075832595,-500.0,0.00010958,2]
[323534478,1714075832606,-500.0,0.00010958,2]
[323534480,1714075832621,-285.42071632,0.00010958,2]
[323534483,1714075832634,-214.57928368,0.00010958,2]
[323534484,1714075832645,-506.19804022,0.00010958,2]
[323534486,1714075832655,-441.48491402,0.00010958,2]
[323534493,1714075832705,-239.85,0.00010009,2]
[323534494,1714075832715,-58.51508598,0.00010958,2]
[323534495,1714075832725,-293.53057662,0.00010958,2]
[323534496,1714075832735,-500.0,0.00010958,2]
[323534497,1714075832745,-500.0,0.00010958,2]
[323534498,1714075832755,-109.80433786,0.00010958,2]
[323534499,1714075832768,-281.63428196,0.00010958,2]
[323534500,1714075832780,-108.56138018,0.00010958,2]
[323534501,1714075832789,-500.0,0.00010958,2]
[323534502,1714075832799,-544.57,0.00010958,2]
[323534503,1714075832810,-500.0,0.00010958,2]
[323534504,1714075832820,-221.97606718,0.00010958,2]
[323534505,1714075832834,-282.79867445,0.00010958,2]
[323534506,1714075832843,-500.0,0.00010958,2]
[323534507,1714075832853,-543.02,0.00010958,2]
[323534508,1714075832866,-500.0,0.00010958,2]
[323534509,1714075832876,-388.10000813,0.00010958,2]
[323534510,1714075832890,-111.89999187,0.00010958,2]
[323534511,1714075832900,-500.0,0.00010958,2]
[323534512,1714075832911,-500.0,0.00010958,2]
[323534513,1714075832922,-500.0,0.00010958,2]
[323534514,1714075832932,-500.0,0.00010958,2]
[323534515,1714075832943,-500.0,0.00010958,2]
[323534516,1714075832953,-150.48399934,0.00010958,2]
[323534517,1714075832963,-500.6420969,0.00010958,2]
[323534518,1714075832973,-500.0,0.00010958,2]
[323534519,1714075832983,-91.01391229,0.00010958,2]
[323534520,1714075833353,-408.98608771,0.00010958,2]
[323534521,1714075833365,-500.0,0.00010958,2]
[323534522,1714075833375,-500.0,0.00010958,2]
[323534523,1714075833384,-500.0,0.00010958,2]
[323534524,1714075833393,-500.0,0.00010958,2]
[323534525,1714075833402,-89.09251429,0.00010958,2]
[323534526,1714075833414,-342.93404351,0.00010958,2]
[323534527,1714075833430,-94.36563406,0.00010958,2]
[323534528,1714075833440,-500.0,0.00010958,2]
[323534529,1714075833450,-503.54199264,0.00010958,2]
[323534530,1714075833461,-500.0,0.00010958,2]
[323534531,1714075833471,-500.0,0.00010958,2]
[323534532,1714075833482,-500.0,0.00010958,2]
[323534533,1714075833493,-501.53607226,0.00010958,2]
[323534534,1714075833503,-500.0,0.00010958,2]
[323534535,1714075833513,-501.48422026,0.00010958,2]
[323534536,1714075833523,-275.19600973,0.00010958,2]
[323534537,1714075833532,-500.0,0.00010958,2]
[323534538,1714075833541,-504.10925535,0.00010958,2]
[323534539,1714075833551,-500.0,0.00010958,2]
[323534540,1714075833559,-500.0,0.00010958,2]
[323534541,1714075833569,-366.99767048,0.00010958,2]
[323534542,1714075833579,-500.0,0.00010958,2]
[323534543,1714075833588,-152.297502,0.00010958,2]
[323534544,1714075833597,-500.0,0.00010958,2]
[323534545,1714075833607,-500.0,0.00010958,2]
[323534546,1714075833619,-500.0,0.00010958,2]
[323534547,1714075833628,-500.0,0.00010958,2]
[323534548,1714075833637,-500.93715424,0.00010958,2]
[323534549,1714075833647,-500.0,0.00010958,2]
[323534550,1714075833656,-227.60687317,0.00010958,2]
[323534551,1714075833666,-500.0,0.00010958,2]
[323534552,1714075833675,-500.0,0.00010958,2]
[323534553,1714075833684,-500.44533309,0.00010958,2]
[323534554,1714075833693,-500.0,0.00010958,2]
[323534555,1714075833702,-501.80718412,0.00010958,2]
[323534556,1714075833711,-500.0,0.00010958,2]
[323534557,1714075833721,-500.0,0.00010958,2]
[323534558,1714075833730,-500.0,0.00010958,2]
[323534559,1714075833740,-500.0,0.00010958,2]
[323534560,1714075833749,-500.0,0.00010958,2]
[323534561,1714075833758,-500.0,0.00010958,2]
[323534562,1714075833768,-500.0,0.00010958,2]
[323534563,1714075833778,-500.0,0.00010958,2]
[323534564,1714075833787,-500.0,0.00010958,2]
[323534565,1714075833797,-500.0,0.00010958,2]
[323534566,1714075833806,-500.0,0.00010958,2]
[323534567,1714075833815,-500.0,0.00010958,2]
[323534568,1714075833824,-500.0,0.00010958,2]
[323534569,1714075833833,-686.66,0.00010958,2]
[323534570,1714075833842,-500.0,0.00010958,2]
[323534571,1714075833852,-569.44,0.00010958,2]
[323534572,1714075833861,-500.0,0.00010958,2]
[323534573,1714075833872,-500.0,0.00010958,2]
[323534574,1714075833881,-500.0,0.00010958,2]
[323534575,1714075833890,-502.35711965,0.00010958,2]
[323534576,1714075833900,-500.0,0.00010958,2]
[323534577,1714075833909,-500.0,0.00010958,2]
[323534578,1714075833918,-503.31770367,0.00010958,2]
[323534579,1714075833928,-500.0,0.00010958,2]
[323534580,1714075833937,-508.07850548,0.00010958,2]
[323534581,1714075833947,-500.0,0.00010958,2]
[323534582,1714075833956,-503.80902002,0.00010958,2]
[323534583,1714075833965,-500.0,0.00010958,2]
[323534584,1714075833974,-443.87,0.00010958,2]
[323534585,1714075833984,-503.24586189,0.00010958,2]
[323534586,1714075833993,-500.0,0.00010958,2]
[323534587,1714075834003,-500.0,0.00010958,2]
[323534588,1714075834015,-500.0,0.00010958,2]
[323534589,1714075834025,-500.0,0.00010958,2]
[323534590,1714075834034,-504.39702051,0.00010958,2]
[323534591,1714075834043,-500.0,0.00010958,2]
[323534592,1714075834053,-500.0,0.00010958,2]
[323534593,1714075834062,-500.0,0.00010958,2]
[323534594,1714075834314,-500.0,0.00010958,2]
[323534595,1714075834324,-500.0,0.00010958,2]
[323534596,1714075834334,-500.0,0.00010958,2]
[323534597,1714075834343,-500.0,0.00010958,2]
[323534598,1714075834352,-502.65488263,0.00010958,2]
[323534599,1714075834361,-500.0,0.00010958,2]
[323534600,1714075834379,-505.83583114,0.00010958,2]
[323534601,1714075834388,-501.84892442,0.00010958,2]
[323534602,1714075834400,-500.0,0.00010958,2]
[323534603,1714075834409,-500.0,0.00010958,2]
[323534604,1714075834419,-500.0,0.00010958,2]
[323534605,1714075834428,-500.0,0.00010958,2]
[323534606,1714075834438,-625.26588897,0.00010958,2]
[323534607,1714075834447,-377.98737552,0.00010958,2]
[323534608,1714075834456,-53.69765352,0.00010958,2]
[323534609,1714075834470,-337.33536043,0.00010958,2]
[323534613,1714075837912,-239.85,0.00010036,2]
[323534614,1714075837922,-239.85,0.00010062,2]
[323534615,1714075837931,-239.85,0.00010089,2]
[323534616,1714075837941,-239.85,0.00010116,2]
[323534617,1714075837950,-239.85,0.00010142,2]
[323534618,1714075837959,-239.85,0.00010169,2]
[323534619,1714075837969,-239.85,0.00010196,2]
[323534620,1714075837978,-239.85,0.00010222,2]
[323534621,1714075837988,-134.79848989,0.00010958,2]
[323534622,1714075837998,-500.0,0.00010958,2]
[323534623,1714075838008,-500.0,0.00010958,2]
[323534624,1714075838020,-500.96161332,0.00010958,2]
[323534625,1714075838030,-703.8,0.00010958,2]
[323534626,1714075838039,-500.0,0.00010958,2]
[323534627,1714075838048,-500.0,0.00010958,2]
[323534628,1714075838059,-505.9854308,0.00010958,2]
[323534629,1714075838068,-500.0,0.00010958,2]
[323534630,1714075838078,-548.63995003,0.00010958,2]
[323534631,1714075838088,-629.41223947,0.00010958,2]
[323534632,1714075838099,-500.0,0.00010958,2]
[323534633,1714075838109,-500.0,0.00010958,2]
[323534634,1714075838120,-2002.35626629,0.00010958,2]
[323534635,1714075838130,-500.0,0.00010958,2]
[323534636,1714075838139,-500.0,0.00010958,2]
[323534637,1714075838149,-500.0,0.00010958,2]
[323534638,1714075838158,-501.50915921,0.00010958,2]
[323534639,1714075838167,-500.0,0.00010958,2]
[323534640,1714075838176,-503.35943438,0.00010958,2]
[323534641,1714075838186,-251.98802002,0.00010958,2]
[323534642,1714075838195,-500.0,0.00010958,2]
[323534643,1714075838205,-500.0,0.00010958,2]
[323534644,1714075838215,-495.90412403,0.00010958,2]
[323534645,1714075838225,-529.32,0.00010958,2]
[323534646,1714075838234,-682.34,0.00010958,2]
[323534647,1714075838244,-500.0,0.00010958,2]
[323534648,1714075838254,-500.0,0.00010958,2]
[323534649,1714075838263,-500.0,0.00010958,2]
[323534650,1714075838273,-503.19920354,0.00010958,2]
[323534651,1714075838283,-500.0,0.00010958,2]
[323534652,1714075838292,-501.28615798,0.00010958,2]
[323534653,1714075838301,-500.0,0.00010958,2]
[323534654,1714075838311,-503.34104853,0.00010958,2]
[323534655,1714075838320,-500.0,0.00010958,2]
[323534656,1714075838329,-500.0,0.00010958,2]
[323534657,1714075838339,-500.0,0.00010958,2]
[323534658,1714075838348,-500.0,0.00010958,2]
[323534659,1714075838357,-500.0,0.00010958,2]
[323534660,1714075838367,-500.0,0.00010958,2]
[323534661,1714075838378,-500.0,0.00010958,2]
[323534662,1714075838387,-276.23467757,0.00010958,2]
[323534663,1714075838397,-503.19106427,0.00010958,2]
[323534664,1714075838406,-500.0,0.00010958,2]
[323534665,1714075838415,-500.49687165,0.00010958,2]
[323534666,1714075838425,-500.0,0.00010958,2]
[323534667,1714075838434,-500.0,0.00010958,2]
[323534668,1714075838444,-500.0,0.00010958,2]
[323534669,1714075838453,-501.82531678,0.00010958,2]
[323534670,1714075838462,-500.0,0.00010958,2]
[323534671,1714075838471,-500.0,0.00010958,2]
[323534672,1714075838480,-500.0,0.00010958,2]
[323534673,1714075838489,-500.0,0.00010958,2]
[323534674,1714075838499,-500.0,0.00010958,2]
[323534675,1714075838508,-500.0,0.00010958,2]
[323534677,1714075838517,-500.0,0.00010958,2]
[323534679,1714075838526,-505.15724034,0.00010958,2]
[323534680,1714075838535,-500.0,0.00010958,2]
[323534681,1714075838544,-500.0,0.00010958,2]
[323534682,1714075838553,-500.0,0.00010958,2]
[323534683,1714075838563,-500.0,0.00010958,2]
[323534685,1714075838572,-500.0,0.00010958,2]
[323534686,1714075838582,-500.0,0.00010958,2]
[323534688,1714075838591,-500.0,0.00010958,2]
[323534690,1714075838600,-500.0,0.00010958,2]
[323534692,1714075838609,-563.48753917,0.00010958,2]
[323534693,1714075838620,-500.0,0.00010958,2]
[323534694,1714075838629,-500.0,0.00010958,2]
[323534695,1714075838638,-500.0,0.00010958,2]
[323534696,1714075838648,-500.0,0.00010958,2]
[323534697,1714075838657,-710.61,0.00010958,2]
[323534698,1714075838666,-500.0,0.00010958,2]
[323534699,1714075838675,-519.69525324,0.00010958,2]
[323534700,1714075838684,-500.0,0.00010958,2]
[323534701,1714075838693,-500.0,0.00010958,2]
[323534702,1714075838703,-500.0,0.00010958,2]
[323534703,1714075838713,-609.7,0.00010958,2]
[323534704,1714075838722,-238.86270938,0.00010958,2]
[323534705,1714075838731,-500.0,0.00010958,2]
[323534706,1714075838739,-500.0,0.00010958,2]
[323534707,1714075838749,-500.0,0.00010958,2]
[323534708,1714075838758,-500.0,0.00010958,2]
[323534709,1714075838767,-500.0,0.00010958,2]
[323534710,1714075838776,-500.0,0.00010958,2]
[323534711,1714075838785,-500.0,0.00010958,2]
[323534712,1714075838794,-500.0,0.00010958,2]
[323534713,1714075838803,-500.0,0.00010958,2]
[323534714,1714075838812,-500.0,0.00010958,2]
[323534715,1714075838821,-500.0,0.00010958,2]
[323534716,1714075838831,-500.0,0.00010958,2]
[323534717,1714075838840,-500.0,0.00010958,2]
[323534718,1714075838849,-500.0,0.00010958,2]
[323534719,1714075838858,-500.0,0.00010958,2]
[323534720,1714075838867,-574.7562363,0.00010958,2]
[323534721,1714075838878,-500.0,0.00010958,2]
[323534722,1714075838888,-297.44395772,0.00010958,2]
[323534723,1714075838897,-500.0,0.00010958,2]
[323534724,1714075838906,-500.0,0.00010958,2]
[323534725,1714075838914,-500.0,0.00010958,2]
[323534726,1714075838923,-500.0,0.00010958,2]
[323534727,1714075838933,-500.0,0.00010958,2]
[323534728,1714075838942,-506.57914626,0.00010958,2]
[323534729,1714075838952,-629.68754361,0.00010958,2]
[323534730,1714075838962,-500.0,0.00010958,2]
[323534731,1714075838970,-513.08883636,0.00010958,2]
[323534732,1714075838979,-500.0,0.00010958,2]
[323534733,1714075838988,-511.64580188,0.00010958,2]
[323534734,1714075838998,-500.0,0.00010958,2]
[323534735,1714075839008,-504.2168565,0.00010958,2]
[323534736,1714075839019,-500.0,0.00010958,2]
[323534737,1714075839029,-500.0,0.00010958,2]
[323534738,1714075839039,-429.078255,0.00010958,2]
[323534739,1714075839048,-500.0,0.00010958,2]
[323534740,1714075839058,-500.0,0.00010958,2]
[323534741,1714075839068,-500.0,0.00010958,2]
[323534742,1714075839077,-221.85,0.00010958,2]
[323534743,1714075839087,-500.0,0.00010958,2]
[323534744,1714075839097,-500.0,0.00010958,2]
[323534745,1714075839106,-500.0,0.00010958,2]
[323534746,1714075839116,-500.0,0.00010958,2]
[323534747,1714075839127,-869.29,0.00010958,2]
[323534748,1714075839136,-500.0,0.00010958,2]
[323534749,1714075839145,-500.0,0.00010958,2]
[323534750,1714075839153,-500.0,0.00010958,2]
[323534751,1714075839162,-500.0,0.00010958,2]
[323534752,1714075839171,-500.0,0.00010958,2]
[323534753,1714075839181,-559.23,0.00010958,2]
[323534754,1714075839190,-500.0,0.00010958,2]
[323534755,1714075839198,-3376.32,0.00010958,2]
[323534756,1714075839207,-15107.19,0.00010958,2]
[323534757,1714075839216,-500.0,0.00010958,2]
[323534758,1714075839225,-534.76,0.00010958,2]
[323534759,1714075839233,-500.0,0.00010958,2]
[323534760,1714075839242,-1686.89,0.00010958,2]
[323534761,1714075839252,-1546.97,0.00010958,2]
[323534762,1714075839261,-8580.36,0.00010958,2]
[323534763,1714075839270,-500.0,0.00010958,2]
[323534764,1714075839279,-435.28,0.00010958,2]
[323534765,1714075839288,-500.0,0.00010958,2]
[323534766,1714075839297,-500.0,0.00010958,2]
[323534767,1714075839306,-541.99,0.00010958,2]
[323534768,1714075839315,-500.0,0.00010958,2]
[323534769,1714075839325,-500.0,0.00010958,2]
[323534770,1714075839335,-799.78,0.00010958,2]
[323534771,1714075839344,-6085.27,0.00010958,2]
[323534772,1714075839353,-783.95,0.00010958,2]
[323534773,1714075839362,-500.0,0.00010958,2]
[323534774,1714075839371,-613.56,0.00010958,2]
[323534775,1714075839380,-2348.68,0.00010958,2]
[323534776,1714075839389,-910.74,0.00010958,2]
[323534777,1714075839398,-577.73,0.00010958,2]
[323534778,1714075839408,-500.0,0.00010958,2]
[323534779,1714075839417,-777.87,0.00010958,2]
[323534780,1714075839426,-500.0,0.00010958,2]
[323534781,1714075839436,-500.0,0.00010958,2]
[323534782,1714075839445,-500.0,0.00010958,2]
[323534783,1714075839454,-500.0,0.00010958,2]
[323534784,1714075839462,-746.37,0.00010958,2]
[323534785,1714075839471,-597.55,0.00010958,2]
[323534786,1714075839480,-500.0,0.00010958,2]
[323534787,1714075839489,-577.87,0.00010958,2]
[323534788,1714075839498,-500.0,0.00010958,2]
[323534789,1714075839507,-1667.92,0.00010958,2]
[323534790,1714075839516,-500.0,0.00010958,2]
[323534791,1714075839525,-4951.04,0.00010958,2]
[323534792,1714075839534,-500.0,0.00010958,2]
[323534793,1714075839543,-602.62,0.00010958,2]
[323534794,1714075839552,-754.74,0.00010958,2]
[323534795,1714075839561,-1191.43,0.00010958,2]
[323534796,1714075839571,-2964.04,0.00010958,2]
[323534797,1714075839580,-2247.44,0.00010958,2]
[323534798,1714075839590,-1008.25,0.00010958,2]
[323534799,1714075839599,-500.0,0.00010958,2]
[323534800,1714075839608,-500.0,0.00010958,2]
[323534801,1714075839618,-1540.66,0.00010958,2]
[323534802,1714075839628,-901.43,0.00010958,2]
[323534803,1714075839637,-500.0,0.00010958,2]
[323534804,1714075839646,-500.0,0.00010958,2]
[323534805,1714075839656,-500.0,0.00010958,2]
[323534806,1714075839665,-500.0,0.00010958,2]
[323534807,1714075839674,-4041.35,0.00010958,2]
[323534808,1714075839683,-500.0,0.00010958,2]
[323534809,1714075839693,-1936.15,0.00010958,2]
[323534810,1714075839703,-2492.02,0.00010958,2]
[323534811,1714075839713,-500.0,0.00010958,2]
[323534812,1714075839722,-509.91,0.00010958,2]
[323534813,1714075839731,-1405.05,0.00010958,2]
[323534814,1714075839740,-668.47,0.00010958,2]
[323534815,1714075839749,-500.0,0.00010958,2]
[323534816,1714075839758,-763.75,0.00010958,2]
[323534817,1714075839767,-906.17,0.00010958,2]
[323534818,1714075839776,-500.0,0.00010958,2]
[323534819,1714075839785,-500.0,0.00010958,2]
[323534820,1714075839795,-500.0,0.00010958,2]
[323534821,1714075839804,-500.0,0.00010958,2]
[323534822,1714075839813,-500.0,0.00010958,2]
[323534823,1714075839822,-974.44,0.00010958,2]
[323534824,1714075839831,-242.29934258,0.00010958,2]
[323534825,1714075839840,-500.0,0.00010958,2]
[323534826,1714075839849,-3854.82,0.00010958,2]
[323534827,1714075839859,-500.0,0.00010958,2]
[323534828,1714075839868,-150.0,0.00010959,2]
[323534829,1714075839878,-7500.0,0.00011031,2]
[323534830,1714075839887,-721.09,0.00011111,2]
[323534831,1714075839896,-635.97,0.0001113,2]
[323534833,1714075839906,-500.0,0.0001113,2]
[323534834,1714075839915,-1209.91,0.0001113,2]
[323534835,1714075839923,-666.61,0.0001113,2]
[323534836,1714075839933,-873.13,0.0001113,2]
[323534837,1714075839942,-500.0,0.0001113,2]
[323534838,1714075839951,-3422.94,0.0001113,2]
[323534839,1714075839960,-500.0,0.0001113,2]
[323534840,1714075839970,-636.4,0.0001113,2]
[323534841,1714075839979,-1676.11,0.0001113,2]
[323534842,1714075839988,-1174.92,0.0001113,2]
[323534843,1714075839997,-611.66,0.0001113,2]
[323534844,1714075840008,-500.0,0.00011131,2]
[323534845,1714075840018,-624.78,0.00011131,2]